Workbook

Sheet Data
F1: System
G2: Train | T2: Standard Test Conditions | Y2: System | AD2: Conversion Factors
G3: Element Selection | S3: Perm Flux | T3: EFX | W3: gfd | Y3: Elements/Vessel | AA3: EPV | AD3: m3/h to gpm | AE3: gpmPERm3h | AF3: 4.40286
S4: Area | T4: EMAe | W4: sq ft | Y4: Vessels | AA4: V | AD4: bar to psi | AE4: psiPERbar | AF4: 14.5
S5: Perm Flow | T5: Qpe | W5: GPD
O6: 401 Jones Rd, Oceanside, CA 92054 | S6: Constant | T6: Ke | W6: no units | AH6: 401 Jones Rd, Oceanside, CA 92054
O7: 1-800-901-2500 | S7: Net Drive Pressure | T7: NDPe | W7: PSI | AH7: 1-800-901-2500
O8: info@hydranautics.com | Q8: www.membranes.com | S8: Concentration - feed | T8: Cfe | W8: ppm | AH8: info@hydranautics.com | AJ8: www.membranes.com
A9: Version 8
G10: Concentration | I10: Flows | K10: Pressures | N10: Normalized Data | S10: Calculated Data
G11: Feed | H11: Permeate | I11: Con | J11: =lblPerm -> Permeate | K11: =G11 -> Feed | L11: =lblBrine -> Con | M11: =lblPerm -> Permeate | N11: Salt Passage | O11: Permeate Flow | P11: Differential Pres. | Q11: Water Transport Coefficient | R11: Salt Transport Coefficient
A12: Date | B12: Hour | C12: Turbidity | D12: SDI | E12: pH | F12: T | G12: Cf | H12: Cp | I12: Qc | J12: Qp | K12: Pf | L12: Pc | M12: Pp | N12: SSPn | O12: QSPn | P12: DPn | Q12: WTCn | R12: STCn | S12: Rec | T12: DP | U12: Day | V12: To | W12: Cfo | X12: Cpo | Y12: Qco | Z12: Qpo | AA12: Pfo | AB12: Pco | AC12: Ppo | AD12: ConF | AE12: Cf ave | AF12: FOP ave | AG12: POP | AH12: DPo | AI12: NDP | AJ12: SFX | AK12: SSP | AL12: SSR | AM12: TCF | AN12: ASPn | AO12: Operator
C13: NTU | F13: C | G13: ppm | H13: =SalinityUnits -> ppm | I13: gpm | J13: =FlowUnits -> gpm | K13: psi | L13: =PresUnits -> psi | M13: =PresUnits -> psi | N13: % | O13: =FlowUnits -> gpm | P13: =PresUnits -> psi | Q13: m/s - kPa | R13: m/s | S13: % | T13: =PresUnits -> psi | U13: days | V13: C | W13: ppm | X13: ppm | Y13: gpm | Z13: gpm | AA13: psi | AB13: psi | AC13: psi | AD13: ppm | AE13: ppm | AF13: psi | AG13: psi | AH13: psi | AI13: psi | AJ13: gfd | AK13: % | AL13: % | AM13: no units | AN13: % | AP13: Comments
A15: InsertRow

Sheet Language
A1: When new language is added:
A2: 1. Update the dropdown box on the frmSetup with the new language
A3: 2. Update the subroutine "MainLabelSetup"
A4: 3. Rename the column on line 10 where the new language is inserted
A5: 4. Highlight column and change column definition
A6: Trains | B6: 1
A7: First Time | B7: TRUE
A8: LangUnits | B8: 0
B9: 0 | C9: 1 | D9: 2 | E9: 3 | F9: 4 | G9: 5
B10: English | C10: Spanish | D10: Portuguese | E10: Japanese(kanji) | F10: 中文 | G10: French
B11: Project Name | C11: Proyecto | D11: Nome do Projeto | E11: プラント名 | F11: 项目名称 | G11: Nom du Projet
B12: Train | C12: Banco | D12: Banco | E12: トレイン | F12: 列 | G12: Ligne
B13: Date | C13: Fecha | D13: Data | E13: 日付 | F13: 日期 | G13: Date
B14: Hour | C14: Hora | D14: Hora | E14: 時間 | F14: 时间 | G14: Heure
B15: Feed pH | C15: pH Alim. | D15: pH Alim. | E15: 供給液 pH | F15: 给水pH | G15: pH Alim.
B16: Feed Temp | C16: Temp. Alim. | D16: Temp. Alim. | E16: 供給液 温度 | F16: 给水温度 | G16: Temp. Alim.
B17: Feed Salinity | C17: Salinidad Alim. | D17: Salinidade Alim. | E17: 供給液 塩濃度 | F17: 给水含盐量 | G17: Salinité Alim.
B18: Perm Salinity | C18: Salinidad Perm. | D18: Salinidade Perm. | E18: 透過液 塩濃度 | F18: 产水含盐量 | G18: Salinité Perm.
B19: Conc Flow | C19: Flujo Conc. | D19: Fluxo Concentrado | E19: 濃縮流量 | F19: 浓水流量 | G19: Débit Concentrat
B20: Permeate Flow | C20: Flujo Permeado | D20: Fluxo Permeado | E20: 透過液流量 | F20: 产水流量 | G20: Débit Perméat
B21: Feed Pressure | C21: Presión Alim. | D21: Pressão Alim. | E21: 供給圧力 | F21: 给水压力 | G21: Pression Alim.
B22: Conc Pressure | C22: Presión Conc. | D22: Pressão Conc. | E22: 濃縮圧力 | F22: 浓水压力 | G22: Pression Conc.
B23: Perm Back Pres | C23: Contrapresión Perm. | D23: Contrapressão Perm. | E23: 透過液 背圧 | F23: 产水背压 | G23: Contre-pression Perm.
B24: Element Selection | C24: Selección Elemento | D24: Escolha da Membrana | E24: エレメント選択 | F24: 膜元件选择 | G24: Sélection de l'Elément
B25: Elements / vessel | C25: Elementos /tubo | D25: Elementos / Vaso | E25: ベッセル当りのエレメント本数 | F25: 膜元件数量／每支压力容器 | G25: Eléments / Tube
B26: Vessels | C26: Tubos | D26: Vasos | E26: ベッセル | F26: 压力容器数量 | G26: Tubes Pression
B27: Standard Test Conditions | C27: Condiciones de Prueba Estándar | D27: Condições de Teste | E27: 標準テスト条件 | F27: 标准测试条件 | G27: Conditions standards de test
B28: Area (sq. ft.) | C28: Area (p²) | D28: Área (ft 2) | E28: 膜面積 (ft 2) | F28: 膜面积(ft 2) | G28: Surface (ft 2)
B29: Feed TDS (ppm) | C29: SDT Alim. | D29: Alim. TDS (ppm) | E29: 供給液 TDS（ppm） | F29: 给水TDS(ppm) | G29: TDS Aliim.
B30: Flow (gpd) | C30: Flujo (gpd) | D30: Fluxo (gpd) | E30: 流量(gpd) | F30: 流量(gpd) | G30: Flux (gpd)
B31: Rej (%) | C31: Rechazo (%) | D31: Rejeição | E31: 除去率(%) | F31: 脱盐率（％） | G31: Rejection (%)
B32: TCF | C32: FCT | D32: TCF | E32: 温度換算係数 | F32: 温度校正系数 | G32: FCT
B33: NDP (psi) | C33: PNA (psi) | D33: NDP (psi) | E33: 実効運転圧力 (psi) | F33: 净驱动压力(psi) | G33: PEN (psi)
B34: Operator | C34: Operador | D34: Operador | E34: 作業者 | F34: 操作人 | G34: Opérateur
B35: Comments | C35: Observaciones | D35: Comentários | E35: コメント | F35: 评论 | G35: Commentaires
B36: Add Data | C36: Introduzca Datos | D36: Adicionar Dados | E36: 入力データ | F36: 加入数据 | G36: Introduire les Données
B37: Operation Data | C37: Datos de Operación | D37: Dados Operacionais | E37: 操作データ | F37: 运行数据 | G37: Données de Fonctionnement
B38: Reference Data | C38: Datos de Referencia | D38: Dados de Referência | E38: 参照データ | F38: 参考数据 | G38: Données de Référence
B39: Concentration | C39: Concentración | D39: Concentração | E39: 濃度 | F39: 浓度 | G39: Concentration
B40: Flows | C40: Flujos | D40: Fluxos | E40: 透過流量 | F40: 流量 | G40: Débits
B41: Pressures | C41: Presiones | D41: Pressões | E41: 圧力 | F41: 压力 | G41: Pressions
B42: Calculated Data | C42: Datos Calculados | D42: Dados Calculados | E42: 計算値 | F42: 计算值 | G42: Données Calculées
B43: Normalized Data | C43: Datos Normalizados | D43: Dados Normalizados | E43: 温度補正データ | F43: 标准化值 | G43: Données Normalisées
B44: Feed | C44: Alim | D44: Alim. | E44: 供給 | F44: 给水 | G44: Alim.
B45: % Salt Passage | C45: Paso de Sales | D45: Passagem de Sal | E45: 塩透過度 | F45: 透盐率 | G45: Passage de Sels
B46: Permeate Flow | C46: Flujo de Permeado | D46: Fluxo de Permeado | E46: 透過液流量 | F46: 产水流量 | G46: Débit Perméat
B47: Differential Pressure | C47: Diferencial de Presión | D47: Diferencial de Pressão | E47: 差圧 | F47: 压差 | G47: Pression Différentielle
B48: Water Transport Coefficient | C48: Coef. Transp. Agua | D48: Coef. Transp. Água | E48: 水透過係数 | F48: 水透过系数 | G48: Coéficient de Transport de l'Eau
B49: Salt Transport Coefficient | C49: Coef. Transp. Sal | D49: Coef. Transp. Sal | E49: 塩透過係数 | F49: 盐透过系数 | G49: Coéficient de Transport des Sels

Sheet Data Collection Form
A1: Print and use this form for manual data collectoin. Data from this form should be entered into ROdataXL
A2: Site: | H2: Train/ Skid: | L2: Stage:
A4: Date | B4: Time | C4: Operator | E4: FEED | H4: CONCENTRATION | K4: FLOWS | M4: PRESSURES
E5: SDI | F5: pH | G5: Temp | H5: Feed | I5: Perm | J5: Conc | K5: Conc | L5: Perm | M5: Feed | N5: Conc | O5: Perm
D6: UNITS:
A21: COMMENTS:
A22: Date | B22: Time

Sheet Cleaning Chem Use (hidden)
A1: Estimated Cleaning Chemical Consumption Calculations
E3: Solution 1 | F3: Solution 3 | H3: Solution 1 | I3: Solution 3 | K3: Misc | L3: Solution 1 | M3: Solution 3 | O3: Misc
B4: Cleanings per Year: Target | C4: Cleanings per Year: Max | D4: Estimated Stage Cleaning Hold Up Volume (Liters) | E4: Citric Acid per stage per cleaning (kg/clean) | F4: STP per stage per cleaning (kg/year) | G4: SDBS per stage per cleaning (kg/yr) | H4: Target Citric Acid (kg/year) | I4: Target STP (kg/year) | J4: Target SDBS (kg/yr) | K4: Target NaOH (kg/yr) | L4: Max Citric Acid (kg/year) | M4: Max STP (kg/year) | N4: Max SDBS (kg/yr) | O4: Max NaOH (kg/yr)
A5: Stage 1 | B5: 2 | C5: 4 | D5: =B23*B22*B20*2+E20 -> 67200 | E5: =B13*D5 -> 1409.604222 | F5: =B14*D5 -> 1365.277045 | G5: =B15*D5 -> 171.9894459 | H5: =$B5*E5 -> 2819.208443 | I5: 2730.55409 | J5: 343.9788918 | K5: 500 | L5: =$C5*E5 -> 5638.416887 | M5: 5461.108179 | N5: 687.9577836 | O5: 700
A6: Stage 2 | B6: 3 | C6: 6 | D6: =B23*B22*B21*2+E21 -> 33600 | E6: =B13*D6 -> 704.8021108 | F6: =B14*D6 -> 682.6385224 | G6: =B15*D6 -> 85.99472296 | H6: 2114.406332 | I6: 2047.915567 | J6: 257.9841689 | K6: 500 | L6: 4228.812665 | M6: 4095.831135 | N6: 515.9683377 | O6: 500
A7: Train | H7: =SUM(H5:H6) -> 4933.614776 | I7: 4778.469657 | J7: 601.9630607 | K7: 1000 | L7: 9867.229551 | M7: 9556.939314 | N7: 1203.926121 | O7: 1200
A8: Plant | H8: =H7*$B$19 -> 39468.91821 | I8: 38227.75726 | J8: 4815.704485 | K8: 8000 | L8: 78937.83641 | M8: 76455.51451 | N8: 9631.408971 | O8: 9600
A9: Plant + Safety | H9: =H8*1.1 -> 43415.81003 | I9: 42050.53298 | J9: 5297.274934 | K9: 8800 | L9: 86831.62005 | M9: 84101.06596 | N9: 10594.54987 | O9: 10560
A10: Est Chem Cost | H10: =H8*D13 -> 40652.98575 | I10: =I8*D14 -> 24848.04222 | J10: =J8*D15 -> 11316.90554 | K10: =K8*D16 -> 3520 | L10: =L8*D13 -> 81305.9715 | M10: =M8*D14 -> 49696.08443 | N10: =N8*D15 -> 22633.81108 | O10: =O8*D16 -> 4224
A12: Chemical Use Data
A13: Solution 1 Conc | B13: =7.95/379 -> 0.0209762533 | C13: kg/L Citric Acid | D13: 1.03 | E13: $/kg CA
A14: Solution 2 Conc | B14: =7.7/379 -> 0.02031662269 | C14: kg/L STP | D14: 0.65 | E14: $/kg STP
B15: =0.97/379 -> 0.002559366755 | C15: kg/L SDBS | D15: 2.35 | E15: $/kg SDBS
D16: 0.44 | E16: $/kg NaOH
A18: Estimated Hold-up Volume Data
A19: Total Trains = | B19: 8 | D19: Cleaning Flow Rate Vessel = | E19: 150 | F19: L/min
A20: 1st Stage Array = | B20: 84 | D20: Cleaning Tank Volume = | E20: =3*E19*B20 -> 37800 | F20: Liters
A21: 2nd Stage Array = | B21: 42 | D21: Cleaning Tank Volume = | E21: =3*E19*B21 -> 18900 | F21: Liters
A22: Elements/Vessel = | B22: 7
A23: Liters/Element = | B23: 25

Sheet Cleaning Data (hidden)
B1: RO Cleaning Data
B2: Periodic cleaning of the RO system may be necessary to remove foulants and restore membrane performance. Cleaning information recorded in the table below may assist in determining the nature of the foulant and the effectiveness of the cleaning.
B3: Additional information on determining fouling and cleaning of RO membranees may be found on the Hydranautics web site www.membranes.com
A6: Table A | B6: Cleaning Data
A7: Cleaning Date | B7: Chemicals | C7: Concentrations | D7: pH | E7: Temp ( C ) | F7: Recirc Time (hours) | G7: Soak Time (hours) | H7: Comments
B8: 1 | C8: 1
B9: 2 | C9: 2
B10: 3 | C10: 3
B11: 4 | C11: 4
B12: 5 | C12: 5
B14: 1 | C14: 1
B15: 2 | C15: 2
B16: 3 | C16: 3
B17: 4 | C17: 4
B18: 5 | C18: 5
B20: 1 | C20: 1
B21: 2 | C21: 2
B22: 3 | C22: 3
B23: 4 | C23: 4
B24: 5 | C24: 5
B26: 1 | C26: 1
B27: 2 | C27: 2
B28: 3 | C28: 3
B29: 4 | C29: 4
B30: 5 | C30: 5
B32: 1 | C32: 1
B33: 2 | C33: 2
B34: 3 | C34: 3
B35: 4 | C35: 4
B36: 5 | C36: 5
B38: 1 | C38: 1
B39: 2 | C39: 2
B40: 3 | C40: 3
B41: 4 | C41: 4
B42: 5 | C42: 5
B44: 1 | C44: 1
B45: 2 | C45: 2
B46: 3 | C46: 3
B47: 4 | C47: 4
B48: 5 | C48: 5
B50: 1 | C50: 1
B51: 2 | C51: 2
B52: 3 | C52: 3
B53: 4 | C53: 4
B54: 5 | C54: 5

Sheet Additional Data
B1: Additional RO System Operational Data
A3: In addition to the data needed to normalize the performance data (see Data sheet in this file) there are other critical data which need to be recorded and tracked. It is important to track these parameters; failure to do so may affect the long term success of the RO membranes.
A4: A list of parameters is given below. You can use this sheet to record the results.
A5: TABLE B Additional System Data
A6: Freqency | C6: Annually, or more frequently during salinity upsets. | D6: Daily if oxidant is used anywhere in the process. Otherwise Annually. | E6: Daily if oxidant is used anywhere in the process. Otherwise Annually. | F6: Start-up, or during O&G upsets | G6: Annually, or more frequently during TOC upsets | H6: Contin- uously (record daily value) | I6: When required | J6: When required
A7: Date | B7: Hour | C7: Feed Water Analysis | D7: Chlorine | E7: Redox | F7: O&G | G7: TOC | H7: Turbidity | I7: Cartridge Filter Change | J7: Cleaning Event
A8: mmddyy | B8: hhmm | D8: mg/L | E8: mV | F8: mg/L | G8: mg/L | H8: NTU | J8: Hi/Lo/Other

Sheet Element Info
A7: Element information must begin at row 10
A8: Element | B8: Area | C8: Feed Con | D8: Flow | E8: Rej | F8: TCF | G8: NDP | H8: Diameter | I8: Length
B9: ft 2 | C9: TDS | D9: GPD | E9: % | G9: psi | H9: in | I9: in
A10: CPA2-4040 | B10: 85 | C10: 1500 | D10: 2250 | E10: 99.5 | F10: 2700 | G10: 206 | H10: 4 | I10: 40
A11: CPA2 | B11: 365 | C11: 1500 | D11: 10000 | E11: 99.7 | F11: 2700 | G11: 206 | H11: 8 | I11: 40
A12: CPA2-8540 | B12: 445 | C12: 1500 | D12: 12000 | E12: 99.5 | F12: 2700 | G12: 206 | H12: 8.5 | I12: 40
A13: CPA3 | B13: 400 | C13: 1500 | D13: 11000 | E13: 99.6 | F13: 2700 | G13: 206 | H13: 8 | I13: 40
A14: CPA3-LD | B14: 400 | C14: 1500 | D14: 11000 | E14: 99.7 | F14: 2700 | G14: 206 | H14: 8 | I14: 40
A15: CPA4 | B15: 400 | C15: 1500 | D15: 6000 | E15: 99.7 | F15: 2700 | G15: 206 | H15: 8 | I15: 40
A16: CPA-4040E | B16: 65 | C16: 1500 | D16: 2250 | E16: 99.5 | F16: 2700 | G16: 206 | H16: 4 | I16: 40
A17: CPA5 -LD-4040 | B17: 80 | C17: 1500 | D17: 2100 | E17: 99.7 | F17: 2700 | G17: 206 | H17: 4 | I17: 40
A18: CPA5-LD | B18: 400 | C18: 1500 | D18: 11000 | E18: 99.7 | F18: 2700 | G18: 206 | H18: 8 | I18: 40
A19: CPA5 MAX | B19: 440 | C19: 1500 | D19: 12000 | E19: 99.7 | F19: 2700 | G19: 206 | H19: 8 | I19: 40
A20: CPA6-LD | B20: 400 | C20: 1500 | D20: 8000 | E20: 99.75 | F20: 2700 | G20: 206 | H20: 8 | I20: 40
A21: LFC1-4040 | B21: 85 | C21: 1500 | D21: 2300 | E21: 99.4 | F21: 2700 | G21: 206 | H21: 4 | I21: 40
A22: LFC1 | B22: 400 | C22: 1500 | D22: 10000 | E22: 99.5 | F22: 2700 | G22: 206 | H22: 8 | I22: 40
A23: LFC2-4040 | B23: 85 | C23: 1500 | D23: 2500 | E23: 95 | F23: 2700 | G23: 206 | H23: 4 | I23: 40
A24: LFC2 | B24: 365 | C24: 1500 | D24: 11000 | E24: 95 | F24: 2700 | G24: 206 | H24: 8 | I24: 40
A25: LFC3-4040 | B25: 85 | C25: 1500 | D25: 2000 | E25: 99.6 | F25: 2700 | G25: 206 | H25: 4 | I25: 40
A26: LFC3-LD-4040 | B26: 80 | C26: 1500 | D26: 2100 | E26: 99.7 | F26: 2700 | G26: 206 | H26: 4 | I26: 40
A27: LFC3 | B27: 400 | C27: 1500 | D27: 9500 | E27: 88.6 | F27: 2700 | G27: 206 | H27: 8 | I27: 40
A28: LFC3-LD | B28: 400 | C28: 1500 | D28: 11000 | E28: 99.7 | F28: 2700 | G28: 206 | H28: 8 | I28: 40
A29: ESPA-2514 | B29: 5.1 | C29: 1500 | D29: 250 | E29: 99.4 | F29: 2700 | G29: 206 | H29: 2.5 | I29: 14
A30: ESPA-2521 | B30: 9.9 | C30: 1500 | D30: 350 | E30: 99.4 | F30: 2700 | G30: 206 | H30: 2.5 | I30: 21
A31: ESPA-2540 | B31: 25.5 | C31: 1500 | D31: 750 | E31: 99.4 | F31: 2700 | G31: 206 | H31: 2.5 | I31: 40
A32: ESPA-4014 | B32: 16.9 | C32: 1500 | D32: 500 | E32: 99.4 | F32: 2700 | G32: 206 | H32: 4 | I32: 14
A33: ESPA-4021 | B33: 28.6 | C33: 1500 | D33: 1000 | E33: 99.4 | F33: 2700 | G33: 206 | H33: 4 | I33: 21
A34: ESPA-4611 | B34: 31 | C34: 1500 | D34: 930 | E34: 99.4 | F34: 2700 | G34: 206 | H34: 4.6 | I34: 11
A35: ESPA-4641 | B35: 120 | C35: 1500 | D35: 3600 | E35: 99.4 | F35: 2700 | G35: 206 | H35: 4.6 | I35: 41
A36: ESPA1-4040 | B36: 85 | C36: 1500 | D36: 2600 | E36: 99.3 | F36: 2700 | G36: 125 | H36: 4 | I36: 40
A37: ESPA1 | B37: 400 | C37: 1500 | D37: 12000 | E37: 99 | F37: 2700 | G37: 125 | H37: 8 | I37: 40
A38: ESPA2-4040 | B38: 85 | C38: 1500 | D38: 1900 | E38: 99.6 | F38: 2700 | G38: 125 | H38: 4 | I38: 40
A39: ESPA2-LD-4040 | B39: 80 | C39: 1500 | D39: 2000 | E39: 99.6 | F39: 2700 | G39: 125 | H39: 4 | I39: 40
A40: ESPA2 | B40: 400 | C40: 1500 | D40: 9000 | E40: 99.5 | F40: 2700 | G40: 125 | H40: 8 | I40: 40
A41: ESPA2-LD | B41: 400 | C41: 1500 | D41: 10000 | E41: 99.6 | F41: 2700 | G41: 125 | H41: 8 | I41: 40
A42: ESPA2-31 | B42: 400 | C42: 1500 | D42: 9000 | E42: 99.6 | F42: 2700 | G42: 125 | H42: 8 | I42: 40
A43: ESPA2 MAX | B43: 440 | C43: 1500 | D43: 12000 | E43: 99.6 | F43: 2700 | G43: 125 | H43: 8 | I43: 40
A44: ESPA2-1640 | B44: 1600 | C44: 1500 | D44: 38000 | E44: 99.6 | F44: 2700 | G44: 125 | H44: 16 | I44: 40
A45: ESPA3-4040 | B45: 85 | C45: 1500 | D45: 3000 | E45: 98 | F45: 2700 | G45: 125 | H45: 4 | I45: 40
A46: ESPA3 | B46: 400 | C46: 1500 | D46: 14000 | E46: 98.5 | F46: 2700 | G46: 125 | H46: 8 | I46: 40
A47: ESPAB | B47: 400 | C47: 1500 | D47: 8600 | E47: 99.2 | F47: 2700 | G47: 125 | H47: 8 | I47: 40
A48: ESPAB MAX | B48: 440 | C48: 1500 | D48: 9000 | E48: 99.3 | F48: 2700 | G48: 125 | H48: 8 | I48: 40
A49: ESPAB-1640 | B49: 1700 | C49: 1500 | D49: 34000 | E49: 99.3 | F49: 2700 | G49: 125 | H49: 16 | I49: 40
A50: ESPA4-4040 | B50: 85 | C50: 500 | D50: 2500 | E50: 99.2 | F50: 2700 | G50: 90 | H50: 8 | I50: 40
A51: ESPA4 | B51: 400 | C51: 500 | D51: 12000 | E51: 99.2 | F51: 2700 | G51: 90 | H51: 8 | I51: 40
A52: ESPA4-LD | B52: 400 | C52: 500 | D52: 12000 | E52: 99.2 | F52: 2700 | G52: 90 | H52: 8 | I52: 40
A53: ESPA4 MAX | B53: 440 | C53: 500 | D53: 13200 | E53: 99.2 | F53: 2700 | G53: 90 | H53: 8 | I53: 40
A54: ESNA1-4040 | B54: 85 | C54: 500 | D54: 2300 | E54: 80 | F54: 2700 | G54: 68 | H54: 4 | I54: 40
A55: ESNA1 | B55: 400 | C55: 500 | D55: 11000 | E55: 80 | F55: 2700 | G55: 68 | H55: 8 | I55: 40
A56: ESNA1-8540 | B56: 445 | C56: 500 | D56: 12000 | E56: 80 | F56: 2700 | G56: 68 | H56: 8.5 | I56: 40
A57: ESNA1-LF | B57: 400 | C57: 500 | D57: 7400 | E57: 86 | F57: 2700 | G57: 68 | H57: 8 | I57: 40
A58: ESNA1-LF-LD | B58: 400 | C58: 500 | D58: 8200 | E58: 89 | F58: 2700 | G58: 68 | H58: 8 | I58: 40
A59: ESNA1-LF-4040 | B59: 85 | C59: 500 | D59: 1600 | E59: 86 | F59: 2700 | G59: 68 | H59: 4 | I59: 40
A60: ESNA1-LF2 | B60: 400 | C60: 500 | D60: 7800 | E60: 80 | F60: 2700 | G60: 68 | H60: 8 | I60: 40
A61: ESNA1-LF2-LD | B61: 400 | C61: 500 | D61: 10500 | E61: 86 | F61: 2700 | G61: 68 | H61: 8 | I61: 40
A62: ESNA1-LF2-4040 | B62: 85 | C62: 500 | D62: 1700 | E62: 80 | F62: 2700 | G62: 68 | H62: 4 | I62: 40
A63: ESNA1-LF3 | B63: 400 | C63: 500 | D63: 7200 | E63: 88 | F63: 2700 | G63: 68 | H63: 8 | I63: 40
A64: ESNA1-LF3-4040 | B64: 85 | C64: 500 | D64: 1500 | E64: 88 | F64: 2700 | G64: 68 | H64: 4 | I64: 40
A65: HYDRACoRe50 | B65: 365 | C65: 500 | D65: 8200 | E65: 50 | F65: 2700 | G65: 68 | H65: 8 | I65: 40
A66: HYDRACoRe50-4040 | B66: 75 | C66: 500 | D66: 1700 | E66: 50 | F66: 2700 | G66: 68 | H66: 4 | I66: 40
A67: Nano-BW | B67: 400 | C67: 2000 | D67: 11000 | E67: 99.7 | F67: 2700 | G67: 125 | H67: 8 | I67: 40
A68: Nano-BW MAX | B68: 440 | C68: 2000 | D68: 12000 | E68: 99.7 | F68: 2700 | G68: 125 | H68: 8 | I68: 40
A69: Nano-SW | B69: 400 | C69: 2000 | D69: 11000 | E69: 99.8 | F69: 2700 | G69: 413.5 | H69: 8 | I69: 40
A70: Nano-SW MAX | B70: 440 | C70: 2000 | D70: 12000 | E70: 99.8 | F70: 2700 | G70: 413.5 | H70: 8 | I70: 40
A71: SANRO-HS-4 | B71: 90 | C71: 1500 | D71: 2200 | E71: 99.7 | F71: 2700 | G71: 206 | H71: 4 | I71: 40
A72: SANRO-HS-8 | B72: 380 | C72: 1500 | D72: 8800 | E72: 99.7 | F72: 2700 | G72: 206 | H72: 8 | I72: 40
A73: SANRO-HS2-4 | B73: 90 | C73: 1500 | D73: 3000 | E73: 99.6 | F73: 2700 | G73: 206 | H73: 4 | I73: 40
A74: SANRO-HS2-8 | B74: 380 | C74: 1500 | D74: 14000 | E74: 99.6 | F74: 2700 | G74: 206 | H74: 8 | I74: 40
A75: SWC-2514 | B75: 5 | C75: 32000 | D75: 110 | E75: 99.4 | F75: 2700 | G75: 413.5 | H75: 2.5 | I75: 14
A76: SWC-2521 | B76: 9.9 | C76: 32000 | D76: 220 | E76: 99.4 | F76: 2700 | G76: 413.5 | H76: 2.5 | I76: 21
A77: SWC-4014 | B77: 16.8 | C77: 32000 | D77: 370 | E77: 99.4 | F77: 2700 | G77: 413.5 | H77: 4 | I77: 14
A78: SWC-4021 | B78: 28.6 | C78: 32000 | D78: 640 | E78: 99.4 | F78: 2700 | G78: 413.5 | H78: 4 | I78: 21
A79: SWC1-4040 | B79: 70 | C79: 32000 | D79: 1100 | E79: 99.6 | F79: 2700 | G79: 413.5 | H79: 4 | I79: 40
A80: SWC1 | B80: 315 | C80: 32000 | D80: 5000 | E80: 99.7 | F80: 2700 | G80: 413.5 | H80: 8 | I80: 40
A81: SWC2-4040 | B81: 70 | C81: 32000 | D81: 1400 | E81: 99.2 | F81: 2700 | G81: 413.5 | H81: 4 | I81: 40
A82: SWC2 | B82: 315 | C82: 32000 | D82: 6200 | E82: 99.2 | F82: 2700 | G82: 413.5 | H82: 8 | I82: 40
A83: SWC3 | B83: 370 | C83: 32000 | D83: 5900 | E83: 99.7 | F83: 2700 | G83: 413.5 | H83: 8 | I83: 40
A84: SWC4 | B84: 370 | C84: 32000 | D84: 5500 | E84: 99.8 | F84: 2700 | G84: 413.5 | H84: 8 | I84: 40
A85: SWC4-LD | B85: 400 | C85: 32000 | D85: 6500 | E85: 99.8 | F85: 2700 | G85: 413.5 | H85: 8 | I85: 40
A86: SWC4 MAX | B86: 440 | C86: 32000 | D86: 7200 | E86: 99.8 | F86: 2700 | G86: 413.5 | H86: 8 | I86: 40
A87: SWC4-1640 | B87: 1600 | C87: 32000 | D87: 36000 | E87: 99.8 | F87: 2700 | G87: 413.5 | H87: 16 | I87: 40
A88: SWC3+ | B88: 400 | C88: 32000 | D88: 7000 | E88: 99.8 | F88: 2700 | G88: 413.5 | H88: 8 | I88: 40
A89: SWC4+ | B89: 400 | C89: 32000 | D89: 6500 | E89: 99.8 | F89: 2700 | G89: 413.5 | H89: 8 | I89: 40
A90: SWC4B | B90: 400 | C90: 32000 | D90: 6500 | E90: 99.8 | F90: 2700 | G90: 413.5 | H90: 8 | I90: 40
A91: SWC4B-LD | B91: 400 | C91: 32000 | D91: 6500 | E91: 99.8 | F91: 2700 | G91: 413.5 | H91: 8 | I91: 40
A92: SWC4B MAX | B92: 440 | C92: 32000 | D92: 7200 | E92: 99.8 | F92: 2700 | G92: 413.5 | H92: 8 | I92: 40
A93: SWC5 | B93: 400 | C93: 32000 | D93: 9000 | E93: 99.8 | F93: 2700 | G93: 413.5 | H93: 8 | I93: 40
A94: SWC5-4040 | B94: 85 | C94: 32000 | D94: 1900 | E94: 99.7 | F94: 2700 | G94: 413.5 | H94: 4 | I94: 40
A95: SWC5-LD-4040 | B95: 80 | C95: 32000 | D95: 1750 | E95: 99.7 | F95: 2700 | G95: 413.5 | H95: 4 | I95: 40
A96: SWC5 MAX | B96: 440 | C96: 32000 | D96: 9900 | E96: 99.8 | F96: 2700 | G96: 413.5 | H96: 8 | I96: 40
A97: SWC5-LD | B97: 400 | C97: 32000 | D97: 9000 | E97: 99.8 | F97: 2700 | G97: 413.5 | H97: 8 | I97: 40
A98: SWC5-1640 | B98: 1600 | C98: 32000 | D98: 34000 | E98: 99.8 | F98: 2700 | G98: 413.5 | H98: 16 | I98: 40
A99: SWC6 | B99: 400 | C99: 32000 | D99: 12000 | E99: 99.8 | F99: 2700 | G99: 413.5 | H99: 8 | I99: 40
A100: SWC6-4040 | B100: 85 | C100: 32000 | D100: 2500 | E100: 99.7 | F100: 2700 | G100: 413.5 | H100: 4 | I100: 40
A101: SWC6-LD | B101: 400 | C101: 32000 | D101: 12000 | E101: 99.8 | F101: 2700 | G101: 413.5 | H101: 8 | I101: 40
A102: SWC6 MAX | B102: 440 | C102: 32000 | D102: 13200 | E102: 99.8 | F102: 2700 | G102: 413.5 | H102: 8 | I102: 40
A103: SWC-2540 | B103: 25.5 | C103: 32000 | D103: 520 | E103: 99.4 | F103: 2700 | G103: 413.5 | H103: 2.5 | I103: 40
A106: Note: Leave the last row blank so the program knows where the element list ends.
A107: 2004-02-02 | B107: New ESNA1-LF flow = 7400 gpd, add ESNA1-LF2 8040, LFC1-4040=99.5%, LFC3 = 99.7% rej, ESPA1-4040 = 99.3% ESPA2-4040 = 99.6%,ESPA3 14000gpd and 99.3%
A108: 2004-02-05 | B108: New ESNA1-LF2 and ESNA1-LF3
A109: 2010-05-15 | B109: New elements added. + names changed to MAX
A110: 2010-04-14 | B110: New elements added (SANRO-HS-4,SANRO-HS8, SANRO-HS2-4,SANROHS2-8,SWC4B MAX, SWC4-1640, SWC5-1640 and ESPA2-1640)
A111: 2014-10-17 | B111: New elements added
